[Event "37th ECCC 2022"]
[Site "Mayrhofen"]
[Date "2022.10.06"]
[Round "4.17"]
[White "Forcen Esteban, Daniel"]
[Black "Predojevic, Borki"]
[Result "1-0"]
[ECO "A06"]
[WhiteElo "2566"]
[BlackElo "2584"]
[Annotator "TA"]
[PlyCount "107"]
[EventDate "2022.10.03"]
[EventType "team-tourn"]
[EventCountry "AUT"]
[SourceTitle "playchess.com"]
[Source "ChessBase"]
[SourceQuality "1"]
[TimeControl "40/5400+30:1800+30"]

{[%evp 14,107,0,8,18,-10,0,0,22,0,0,-1,0,0,0,0,0,0,0,0,0,0,0,-23,0,0,0,0,0,0,0,-15,-41,-22,-35,-27,-4,-11,-14,-12,42,48,50,0,5,3,2,0,133,137,217,182,218,223,262,246,252,256,375,369,362,252,547,558,599,581,460,666,1029,1029,961,866,1332,985,724,638,2037,1923,1433,1635,1822,1513,1571,1232,1031,2732,5089,4718,29984,29977,29985,29986,29986,29987,29987,29988]} 1. c4 {[%emt 0:00:05]} e6 {[%emt 0:00:14]} 2. Nf3 {[%emt 0:01:30]} Nf6 {[%emt 0:01:50]} 3. b3 {[%emt 0:00:15]} d5 {[%emt 0:02:48]} 4. Bb2 {[%emt 0:00:06]} c5 {[%emt 0:00:51]} 5. e3 {[%emt 0:02:23]} Nc6 {[%emt 0:00:22]} 6. cxd5 {[%emt 0:00:17]} exd5 {[%emt 0:01:55]} 7. Bb5 {[%emt 0:00:33]} Bd6 {[%emt 0:00:39]} 8. O-O {[%emt 0:00:10]} O-O {[%emt 0:00:05] A13: English Opening: 1...e6.} 9. d4 {[%emt 0:00:07]} cxd4 {[%emt 0:01:07]} 10. Nxd4 {[%emt 0:00:56]} Bc7 {[%emt 0:00:08] The position is equal.} 11. Nf3 {[%emt 0:00:06]} (11. Nxc6 bxc6 12. Be2 (12. Bxc6 $2 Qd6 $19) 12... Re8 $11) (11. Qc2 $5 {[%cal Rb5c6]}) 11... Re8 {[%emt 0:07:18]} 12. Nbd2 {[%emt 0:00:54] [#]} a6 $146 {[%emt 0:17:01]} ({Predecessor:} 12... Qd6 13. Qc2 Ne4 14. g3 Bf5 15. Nxe4 Bxe4 16. Qc3 Qh6 17. Bxc6 bxc6 18. Nd2 Bf5 {0-1 (31) Puranik,A (2603)-Narayanan,S (2657) chess24.com INT 2022}) 13. Bxc6 {[%emt 0:01:44]} bxc6 {[%emt 0:00:59]} 14. Rc1 {[%emt 0:00:13]} Bd7 {[%emt 0:01:50]} 15. Qc2 {[%emt 0:35:39]} a5 {[%emt 0:13:09]} 16. Rfe1 {[%emt 0:05:40]} Ne4 {[%emt 0:13:45]} 17. Nxe4 {[%emt 0:00:57]} Rxe4 {[%emt 0:00:03]} 18. Nd2 {[%emt 0:16:05]} Rg4 {[%emt 0:01:59][%cal Oc7h2]} 19. f4 {[%emt 0:03:26]} Qh4 {[%emt 0:14:14]} 20. Nf3 {[%emt 0:05:02]} Qh5 {[%emt 0:00:02]} 21. Be5 {[%emt 0:08:44]} Bb6 {[%emt 0:00:54]} 22. Kh1 {[%emt 0:00:12]} Rg6 {[%emt 0:02:12][%cal Od7h3]} 23. e4 {[%emt 0:03:55]} dxe4 {[%emt 0:09:11]} 24. Qxe4 {[%emt 0:00:07]} Re8 {[%emt 0:00:42]} 25. Qd3 {[%emt 0:04:42]} Bf5 {[%emt 0:06:37] A strong pair of Bishops.} 26. Bd4 {[%emt 0:00:56][%cal Re1e8] [#] Dancing on a razor blade.} Rd8 {[%emt 0:00:32]} (26... Bxd3 $2 27. Rxe8#) ({Black should try} 26... Rxe1+ $1 $11 27. Rxe1 h6) 27. Qe3 $14 {[%emt 0:05:17][%cal Oe3e8] Qe8+! would kill now.} Re6 {[%emt 0:00:03] Prevents Qe8+.} (27... Qg4 $2 {[#]} 28. Qe8+ $3 {[%mdl 512]} Rxe8 29. Rxe8#) 28. Qf2 $40 {[%emt 0:00:04][%mdl 128] White has some attack.} Bxd4 29. Nxd4 {[%emt 0:00:10]} Rxe1+ {[%emt 0:03:31]} (29... Rh6 30. Qg1 $16) 30. Qxe1 {[%emt 0:01:51]} Bd3 {[%emt 0:00:34]} (30... h6 $11 31. Nxc6 Rd6) 31. Nxc6 $16 {[%emt 0:00:39] White stays focused until the end.} Rf8 {[%emt 0:00:06]} (31... Ra8 $16 {is a better defense.} 32. h3 f6 33. Qe6+ Qf7) 32. Nxa5 {[%emt 0:02:55]} ({Resist} 32. Qxa5 Qe2 $16) 32... Qf5 {[%emt 0:00:51]} 33. Qe5 {[%emt 0:00:22]} Qg4 {[%emt 0:00:06]} 34. Nc6 {[%emt 0:00:50]} h6 {[%emt 0:00:08]} 35. h3 {[%emt 0:00:05]} Qg3 {[%emt 0:00:15]} (35... Qd7 $142 36. Ne7+ Kh7) 36. Rc3 $18 {[%emt 0:00:41][%cal Bc1c3,Bc3e3,Be3e7,Be7b7,Bb7b5][%mdl 32]} Qf2 {[%emt 0:01:29] aiming for ...Bf1.} 37. Qd4 {[%emt 0:00:36]} ({And not} 37. Rxd3 Qf1+ 38. Kh2 Qxd3 $11) ({Less strong is} 37. Ne7+ Kh7 $16) 37... Qe1+ {[%emt 0:00:56]} (37... Qxd4 38. Nxd4 Be4) 38. Kh2 {[%emt 0:00:01]} Bg6 {[%emt 0:00:20]} 39. Re3 {[%emt 0:00:49]} Qc1 {[%emt 0:00:18]} 40. Ne7+ {[%emt 0:00:13]} Kh7 {[%emt 0:00:25]} 41. Nxg6 {[%emt 0:31:06]} fxg6 {[%emt 0:30:08]} 42. Re7 {[%emt 0:00:05][%csl Ge7][%cal Rd4g7]} Qxf4+ {[%emt 0:00:45]} 43. Qxf4 {[%emt 0:00:06]} Rxf4 {[%emt 0:00:02][%mdl 4096] Endgame KR-KR} 44. Rb7 {[%emt 0:00:28]} Rf2 {[%emt 0:00:08]} 45. a4 {[%emt 0:00:05][%cal Ba2a4,Ba4a5,Ba5a6][%mdl 32]} Ra2 {[%emt 0:00:05]} 46. Rb5 {[%emt 0:00:48]} g5 {[%emt 0:00:18]} 47. a5 {[%emt 0:00:42]} Kg6 {[%emt 0:00:05]} 48. b4 {[%emt 0:00:40][%cal Bb3b4,Bb4b5,Bb5b6,Bb6b7][%mdl 32]} Kh5 {[%emt 0:01:08]} 49. Rb6 {[%emt 0:00:05] Hoping for a6.} Kh4 {[%emt 0:00:00]} 50. a6 {[%emt 0:00:00]} h5 {[%emt 0:00:00]} 51. b5 {[%emt 0:00:00] White mates.} g4 {[%emt 0:00:00]} 52. Rg6 {[%emt 0:00:00]} gxh3 {[%emt 0:00:00]} 53. b6 {[%emt 0:00:00]} hxg2 {[%emt 0:00:00]} 54. b7 {[%emt 0:00:00] Weighted Error Value: White=0.11 (very precise) /Black=0.40} 1-0

[Event "37th ECCC 2022"]
[Site "Mayrhofen"]
[Date "2022.10.06"]
[Round "4.18"]
[White "Markus, Robert"]
[Black "Bernadskiy, Vitaliy"]
[Result "1/2-1/2"]
[ECO "E06"]
[WhiteElo "2615"]
[BlackElo "2570"]
[Annotator "TA"]
[PlyCount "49"]
[EventDate "2022.10.03"]
[EventType "team-tourn"]
[EventCountry "AUT"]
[SourceTitle "playchess.com"]
[Source "ChessBase"]
[SourceQuality "1"]
[TimeControl "40/5400+30:1800+30"]

{[%evp 19,49,23,14,6,7,0,10,8,30,13,11,8,8,7,14,0,0,0,0,0,0,0,0,0,0,0,0,0,0,0,0,0]} 1. d4 {[%emt 0:00:05]} Nf6 {[%emt 0:00:04]} 2. c4 {[%emt 0:00:08]} e6 {[%emt 0:00:03]} 3. Nf3 {[%emt 0:00:07]} d5 {[%emt 0:00:04]} 4. g3 {[%emt 0:00:14]} Be7 {[%emt 0:00:05]} 5. Bg2 {[%emt 0:00:10]} O-O {[%emt 0:00:06]} 6. O-O {[%emt 0:03:52]} dxc4 {[%emt 0:00:06]} 7. Qc2 {[%emt 0:00:05]} a6 {[%emt 0:00:04]} 8. a4 {[%emt 0:00:46]} Bd7 {[%emt 0:00:26]} 9. Qxc4 {[%emt 0:02:00]} Bc6 {[%emt 0:00:05]} 10. Bf4 {[%emt 0:07:22]} Nbd7 {[%emt 0:01:01]} 11. Qc1 {[%emt 0:06:49] E05: Open Catalan: 5 Nf3 Be7.} Rc8 {[%emt 0:05:09]} 12. Nc3 {[%emt 0:05:04]} Nd5 {[%emt 0:00:56]} 13. Rd1 {[%emt 0:04:41]} N7f6 {[%emt 0:06:32] [#]} 14. Bg5 $146 {[%emt 0:03:44]} ({Predecessor:} 14. Ne5 Nxc3 15. bxc3 Bxg2 16. Kxg2 Nd7 17. Qb2 Rb8 18. c4 Nxe5 19. Bxe5 Bd6 20. d5 {½-½ (38) Iturrizaga Bonelli,E (2595)-Bruzon Batista,L (2636) Chess.com INT 2022}) 14... h6 {[%emt 0:06:30] The position is equal.} 15. Bxf6 {[%emt 0:03:27]} Nxf6 {[%emt 0:00:53]} 16. Qc2 {[%emt 0:09:16]} Bb4 {[%emt 0:02:18]} 17. a5 {[%emt 0:04:55]} Qe7 {[%emt 0:03:27]} 18. Qb3 {[%emt 0:02:28]} Rfd8 {[%emt 0:01:19]} 19. e3 {[%emt 0:00:18]} Bd6 {[%emt 0:04:37]} 20. Rac1 {[%emt 0:06:04]} Bb4 {[%emt 0:01:23]} 21. Na2 {[%emt 0:01:24]} Bd6 {[%emt 0:02:09]} ({But not} 21... Bxa5 22. Rxc6 bxc6 23. Ne5 $14) 22. Nc3 {[%emt 0:07:10]} Bb4 {[%emt 0:00:10]} 23. Na2 {[%emt 0:03:44]} Bd6 {[%emt 0:00:12]} ({Don't do} 23... Bxa5 24. Rxc6 bxc6 25. Ne5 $14) 24. Nc3 {[%emt 0:00:20]} Bb4 {[%emt 0:00:29]} 25. Na2 {[%emt 0:00:18] An uneventful encounter.  Weighted Error Value: White=0.03 (flawless) /Black=0.03 (flawless)} 1/2-1/2

[Event "37th ECCC 2022"]
[Site "Mayrhofen"]
[Date "2022.10.06"]
[Round "4.19"]
[White "Vachier-Lagrave, Maxime"]
[Black "Can, Emre"]
[Result "1/2-1/2"]
[ECO "B90"]
[WhiteElo "2747"]
[BlackElo "2592"]
[Annotator "TA"]
[PlyCount "157"]
[EventDate "2022.10.03"]
[EventType "team-tourn"]
[EventCountry "AUT"]
[SourceTitle "playchess.com"]
[Source "ChessBase"]
[SourceQuality "1"]
[TimeControl "40/5400+30:1800+30"]

{[%evp 17,157,28,18,19,22,32,20,10,65,61,99,84,87,77,141,148,146,140,156,171,191,165,164,34,41,0,0,0,34,0,0,-34,42,39,233,225,216,225,301,293,304,287,278,245,417,362,379,376,459,444,676,660,575,0,448,438,639,636,612,593,639,644,584,600,583,632,621,613,598,589,488,567,462,337,301,296,304,264,275,272,247,172,156,0,553,531,594,651,785,779,666,246,163,163,156,139,133,13,15,17,12,12,12,15,16,16,14,21,76,86,125,139,129,146,203,96,120,31,19,0,0,0,0,0,0,0,0,0,0,0,0,0,0,0,0,0,0,0,0,0,0,0]} 1. e4 {[%emt 0:00:02]} c5 {[%emt 0:00:10]} 2. Nf3 {[%emt 0:00:03]} d6 {[%emt 0:00:13]} 3. d4 {[%emt 0:00:03]} cxd4 {[%emt 0:00:19]} 4. Nxd4 {[%emt 0:00:06]} Nf6 {[%emt 0:00:25]} 5. Nc3 {[%emt 0:00:04]} a6 {[%emt 0:00:40]} 6. Be3 {[%emt 0:00:03]} e5 {[%emt 0:00:13]} 7. Nb3 {[%emt 0:00:03]} Be6 {[%emt 0:01:00]} 8. f3 {[%emt 0:00:17]} h5 {[%emt 0:00:51]} 9. Qd2 {[%emt 0:02:16]} Nbd7 {[%emt 0:02:48]} 10. Nd5 {[%emt 0:00:56] 10.Nd5 scores better than 10.0-0-0. B90: Sicilian Najdorf: Unusual White 6th moves, 6 Be3 Ng4 and 6 Be3 e5.} Bxd5 {[%emt 0:00:19]} 11. exd5 {[%emt 0:00:07]} Be7 {[%emt 0:01:31]} 12. O-O-O {[%emt 0:08:29]} b6 {[%emt 0:10:55]} (12... Rc8 $11) 13. Kb1 {[%emt 0:01:35]} Nc5 {[%emt 0:04:12] [#]} 14. Bxc5 $146 {[%emt 0:04:44]} ({Predecessor:} 14. Nxc5 bxc5 15. Bxc5 dxc5 16. d6 O-O 17. dxe7 Qxe7 18. Bc4 Rfd8 19. Qe3 Rd4 20. Rxd4 cxd4 {1-0 (51) Remizov,Y (2400)-Kozionov,K (2453) Chess.com INT 2021}) 14... bxc5 {[%emt 0:00:08]} 15. Na5 {[%emt 0:00:03]} Nd7 {[%emt 0:05:20]} (15... O-O $142) 16. Nc6 $16 {[%emt 0:00:39]} Qc7 {[%emt 0:00:07]} 17. Bd3 {[%emt 0:04:46]} Bf6 {[%emt 0:01:58]} 18. g4 {[%emt 0:05:56] White has more active pieces. The black rooks are badly placed.} g6 {[%emt 0:00:09]} 19. Rhg1 {[%emt 0:02:09]} Kf8 {[%emt 0:11:57]} 20. gxh5 {[%emt 0:05:32]} (20. g5 $18 Bg7 21. c3) 20... Rxh5 $14 {[%emt 0:01:15]} 21. f4 {[%emt 0:13:20][%cal Od3g6]} e4 $1 {[%emt 0:06:01]} 22. Bxe4 {[%emt 0:00:51]} Nb6 {[%emt 0:00:07] Threatens to win with ...Nc4.} 23. c3 {[%emt 0:03:08][%cal Of4f5]} (23. Bxg6 $5 fxg6 24. Rxg6 $14) 23... Re8 {[%emt 0:03:22]} 24. Qc2 {[%emt 0:02:44]} Nc4 {[%emt 0:13:25]} (24... Rh4 $15) 25. Qd3 {[%emt 0:06:42]} Na3+ {[%emt 0:10:35]} 26. bxa3 $18 {[%emt 0:02:38]} Qb6+ {[%emt 0:00:10]} 27. Kc2 {[%emt 0:01:22][%cal Bb1c2,Bc2b3,Bb3a4][%mdl 32]} c4 {[%emt 0:02:33]} 28. Qxc4 {[%emt 0:01:12]} Qf2+ {[%emt 0:00:07]} 29. Kb3 {[%emt 0:00:33]} Rxh2 {[%emt 0:00:12]} 30. Ka4 {[%emt 0:01:07]} Rh3 $2 {[%emt 0:14:21]} (30... Qxf4 {might work better.} 31. Bd3 Qxc4+ 32. Bxc4 Bxc3) 31. Rgf1 {[%emt 0:06:03]} Qb2 {[%emt 0:06:40][%cal Oe8e4] ( -> ...Rxe4!)} 32. Bd3 {[%emt 0:00:53]} Ree3 {[%emt 0:00:51][%cal Oe3d3]} 33. Rb1 {[%emt 0:04:54]} Qg2 {[%emt 0:00:14]} (33... Qd2 $142 34. Rfd1 (34. Rb8+ Kg7 $16) 34... Qxc3) 34. Rg1 {[%emt 0:04:39]} Qf2 {[%emt 0:00:22]} 35. Rgf1 {[%emt 0:03:13]} Qg2 {[%emt 0:00:13]} 36. Nb4 {[%emt 0:02:51]} Rxd3 {[%emt 0:00:17]} (36... a5 $142 37. Kxa5 Kg7) 37. Nxd3 {[%emt 0:00:04]} Qc2+ {[%emt 0:00:12]} 38. Rb3 {[%emt 0:01:42]} Rxd3 {[%emt 0:00:07]} 39. Qc8+ {[%emt 0:00:06]} Kg7 {[%emt 0:00:17]} 40. Rh1 {[%emt 0:00:06][%csl Gh1][%cal Rc8h8]} Rd4+ {[%emt 0:00:19]} 41. Ka5 {[%emt 0:30:04][%csl Gh1][%cal Rc8h8]} Rxd5+ {[%emt 0:31:33]} 42. Kxa6 {[%emt 0:00:12][%csl Gh1][%cal Rc8h8]} Rh5 {[%emt 0:02:08] Inhibits Qh8+.} 43. Rxh5 {[%emt 0:01:06]} gxh5 {[%emt 0:00:07][%mdl 4096] Endgame KQR-KQB} 44. c4 {[%emt 0:00:07] Strongly threatening Rg3+.} h4 {[%emt 0:01:04] Prevents Rg3+.} 45. Qg4+ {[%emt 0:06:48]} Kh6 {[%emt 0:00:00]} 46. f5 {[%emt 0:00:00]} Qxa2 {[%emt 0:00:00]} 47. Rd3 {[%emt 0:00:00]} Kh7 {[%emt 0:00:00]} 48. Qe4 {[%emt 0:00:00]} Qc2 {[%emt 0:00:00]} 49. Kb5 {[%emt 0:00:00] Against Qa4+. Hoping for Qd5.} Qb1+ {[%emt 0:00:00]} 50. Ka6 $2 {[%emt 0:00:00]} ({Better is} 50. Ka5 $16) 50... Qb8 $2 {[%emt 0:00:00][%mdl 8192]} (50... Qc2 $11) 51. Qc6 {[%emt 0:00:00]} Be5 {[%emt 0:00:00]} 52. c5 {[%emt 0:00:00]} dxc5 {[%emt 0:00:00]} 53. Rd7 {[%emt 0:00:00]} Kg8 {[%emt 0:00:00]} 54. Qd5 $2 {[%emt 0:00:00]} (54. f6) 54... Qc8+ {[%emt 0:00:00]} 55. Kb6 $1 {[%emt 0:00:00]} Qb8+ {[%emt 0:00:00]} 56. Kxc5 {[%emt 0:00:00]} Qf8+ {[%emt 0:00:00]} 57. Kc4 {[%emt 0:00:00]} (57. Kc6 $16 {Rd8 would kill now.} Qh6+ 58. Kb5) 57... Bf6 $11 {[%emt 0:00:00] Inhibits Rd8.} 58. Qg2+ {[%emt 0:00:00]} Kh8 $1 {[%emt 0:00:00] ...Qc8+ is the strong threat.} 59. Qc6 {[%emt 0:00:00] Inhibits Qc8.} Kg7 {[%emt 0:01:27]} 60. Rd3 {[%emt 0:00:00]} Qb8 {[%emt 0:00:31]} 61. Qg2+ {[%emt 0:00:00]} Kh6 {[%emt 0:00:33]} 62. Qe4 {[%emt 0:00:00]} Kg5 {[%emt 0:01:39]} (62... Kg7 $1 $11 {keeps the balance.}) 63. a4 $1 $16 {[%emt 0:00:45]} Qc8+ {[%emt 0:00:36]} 64. Kb3 {[%emt 0:00:39]} Qc5 {[%emt 0:03:20]} 65. Qg2+ $1 {[%emt 0:05:14]} Kh5 {[%emt 0:01:31] [#]} (65... Kh6 $16 {keeps fighting.}) 66. Qf3+ {[%emt 0:00:03]} (66. Qd5 $1 $18 {[%cal Rd5c5] has better winning chances.} Qxd5+ 67. Rxd5) 66... Kg5 {[%emt 0:00:05] [#]} 67. Rd2 {[%emt 0:02:00]} ({White should try} 67. Qe4 $1 $16) 67... Be5 {[%emt 0:01:14]} 68. Rd5 {[%emt 0:04:14] The position is equal.} Qb6+ {[%emt 0:00:19]} 69. Rb5 {[%emt 0:00:03]} Qd4 $1 {[%emt 0:00:06]} 70. Qg2+ {[%emt 0:00:08]} Kxf5 {[%emt 0:01:58]} 71. Qc2+ {[%emt 0:00:22]} Kg5 {[%emt 0:00:39]} 72. a5 {[%emt 0:04:52]} h3 {[%emt 0:00:38]} ({But not} 72... f5 73. Qg2+ Bg3 74. Qf3 $14) 73. a6 {[%emt 0:00:27][%cal Oa6a7] And now a7! would win.} f6 {[%emt 0:01:14]} 74. Rb7 {[%emt 0:01:23] Black must now prevent Rg7+. The board is on fire.} Qd5+ {[%emt 0:00:26]} (74... h2 75. Rg7+ Kf4 76. Qxh2+ Ke4 77. Qh1+ Kf4 78. Qh4+ (78. a7 Qc3+ 79. Ka4 Qc4+ 80. Ka5 Bc7+ 81. Rxc7 Qxc7+ 82. Ka6 Qd6+ 83. Kb7 Qe7+ 84. Kb8 Qd8+ 85. Kb7 Qe7+ 86. Kb8 Qd8+ 87. Kb7 Qe7+ $11) 78... Kf5 79. Qh3+ Ke4 80. Qg4+ Ke3 81. Qxd4+ Bxd4 82. Kc4) 75. Ka4 {[%emt 0:00:22] Intending Rg7+ and mate.} Qd4+ {[%emt 0:00:58]} (75... h2 76. Rg7+ Kf4 77. Qf2+ Ke4 78. Qg2+ Kd4 79. Rg4+ Kc5 80. Qxd5+ Kxd5 81. a7) 76. Kb5 {[%emt 0:00:10] White threatens Rg7+ and mate.} Qd5+ {[%emt 0:00:29]} 77. Ka4 {[%emt 0:00:05] Threatening mate with Rg7+.} Qd4+ {[%emt 0:00:04]} (77... h2 78. Rg7+ Kf4 79. Qf2+ Ke4 80. Qg2+ Kd4 81. Rg4+ Kc5 82. Qxd5+ Kxd5 83. a7) 78. Kb5 {[%emt 0:00:19] aiming for Rg7+.} Qd5+ {[%emt 0:00:07]} 79. Ka4 {[%emt 0:00:18] Weighted Error Value: White=0.33/Black=0.54} 1/2-1/2

[Event "37th ECCC 2022"]
[Site "Mayrhofen"]
[Date "2022.10.06"]
[Round "4.20"]
[White "Sanal, Vahap"]
[Black "Esipenko, Andrey"]
[Result "1/2-1/2"]
[ECO "C47"]
[WhiteElo "2595"]
[BlackElo "2668"]
[Annotator "TA"]
[PlyCount "195"]
[EventDate "2022.10.03"]
[EventType "team-tourn"]
[EventCountry "AUT"]
[SourceTitle "playchess.com"]
[Source "ChessBase"]
[SourceQuality "1"]
[TimeControl "40/5400+30:1800+30"]

{[%evp 24,195,22,13,14,17,18,16,28,27,37,28,22,14,24,17,31,26,46,42,37,33,52,52,51,31,32,0,0,0,12,9,11,15,15,0,0,-8,-10,-14,-19,-20,-20,-37,-58,-50,-53,-52,-37,-47,-40,-124,-122,-125,-41,-81,-77,-90,-64,-79,-16,-28,0,-74,-86,-98,-109,-107,-27,-22,-28,-55,-20,-64,-64,-64,-64,-67,-59,-59,-59,-59,-59,-59,-59,-59,-59,-59,-59,-59,-59,-59,-59,-59,-59,-59,-59,-59,-59,-72,-72,-72,-59,-59,-59,-59,-59,-59,-59,-58,-58,-58,0,-58,0,-58,-58,-58,-58,-72,-72,-72,-72,-80,-80,-80,-80,-80,-80,-80,0,0,0,-72,-72,-80,-72,-72,-72,-72,-57,-57,-8,-8,-8,-8,-8,-8,-8,-8,-8,-8,-8,-8,0,-8,-8,-8,-8,-8,-8,-8,-8,-8,0,0,0,0,0,0,0,0,4,4]} 1. e4 {[%emt 0:00:06]} e5 {[%emt 0:00:20]} 2. Nf3 {[%emt 0:00:09]} Nc6 {[%emt 0:00:33]} 3. Nc3 {[%emt 0:00:19]} Nf6 {[%emt 0:00:26]} 4. d4 {[%emt 0:00:22]} exd4 {[%emt 0:00:21]} 5. Nxd4 {[%emt 0:00:11]} Bb4 {[%emt 0:00:14]} 6. Nxc6 {[%emt 0:00:08]} bxc6 {[%emt 0:00:08]} 7. Bd3 {[%emt 0:00:08]} d5 {[%emt 0:01:06]} 8. exd5 {[%emt 0:00:08]} O-O {[%emt 0:00:06]} 9. O-O {[%emt 0:00:16]} Bg4 {[%emt 0:04:47]} 10. Ne2 {[%emt 0:00:45]} cxd5 {[%emt 0:02:16]} 11. h3 {[%emt 0:00:07]} Bh5 {[%emt 0:05:13]} 12. c3 {[%emt 0:00:08]} Be7 {[%emt 0:02:52]} 13. Qc2 {[%emt 0:00:15]} Bg6 {[%emt 0:03:53]} 14. Nf4 {[%emt 0:04:28]} Bxd3 {[%emt 0:00:45]} 15. Nxd3 {[%emt 0:00:06]} c6 {[%emt 0:07:21]} 16. Be3 {[%emt 0:02:31]} Qa5 {[%emt 0:06:20]} 17. Rfe1 {[%emt 0:00:56]} Ne4 {[%emt 0:02:55]} 18. Bd4 {[%emt 0:07:03]} Rfe8 {[%emt 0:03:30]} 19. b4 {[%emt 0:07:51]} Qa6 {[%emt 0:04:46]} 20. Re2 {[%emt 0:01:40]} Bf8 {[%emt 0:09:31]} 21. Rae1 {[%emt 0:03:06]} Red8 {[%emt 0:00:08]} 22. a4 {[%emt 0:07:28]} Qb7 {[%emt 0:07:06]} 23. f3 {[%emt 0:10:38]} Nd6 {[%emt 0:00:43]} 24. Nc5 {[%emt 0:03:24]} Qc8 {[%emt 0:00:08]} 25. g4 {[%emt 0:00:44]} a5 {[%emt 0:01:26]} 26. Kg2 {[%emt 0:02:41]} Nb7 {[%emt 0:02:35]} 27. Nd3 {[%emt 0:11:07]} c5 {[%emt 0:04:12]} 28. bxc5 {[%emt 0:00:39]} Nxc5 {[%emt 0:00:10]} 29. Nf4 {[%emt 0:03:42]} Qc6 {[%emt 0:01:37]} 30. Qf5 {[%emt 0:01:38]} Nb3 $1 {[%emt 0:09:38]} 31. Re7 {[%emt 0:10:15]} Nxd4 {[%emt 0:02:39]} 32. Qxf7+ {[%emt 0:00:04]} (32. cxd4 Bxe7 33. Rxe7 Rf8 $19) 32... Kh8 {[%emt 0:00:06]} 33. Rc7 {[%emt 0:03:21]} Qxa4 {[%emt 0:06:44]} 34. cxd4 {[%emt 0:03:28]} Qxd4 {[%emt 0:00:56]} 35. Re2 {[%emt 0:07:14]} Qf6 {[%emt 0:03:12]} 36. Qxf6 {[%emt 0:01:54]} gxf6 {[%emt 0:00:05]} 37. Rf7 {[%emt 0:04:45] [#]} ({White should try} 37. Ne6 $15 Re8 38. Kf1) 37... Kg8 $1 $17 {[%emt 0:07:37]} 38. Rxf6 {[%emt 0:00:05] [#]} a4 {[%emt 0:00:22]} (38... d4 $1 $17 {[%cal Rd4d3] Hoping for ...d3.} 39. Nd3 a4) 39. Ra2 {[%emt 0:02:18]} a3 {[%emt 0:00:34]} 40. Rf5 {[%emt 0:01:24]} Rab8 {[%emt 0:02:36]} 41. Rg5+ {[%emt 0:07:34]} Kf7 {[%emt 0:04:03]} (41... Kh8 $17 {And now ...Rb2+ would win.} 42. Rxd5 Rxd5 43. Nxd5 Rb3) 42. Rf5+ $11 {[%emt 0:00:37]} Kg8 {[%emt 0:00:21]} (42... Ke8 $11 {deserves consideration.} 43. Re2+ Kd7 44. Rxd5+ Kc6 45. Rc2+ Kb6) 43. Rg5+ $17 {[%emt 0:00:08]} Kh8 {[%emt 0:03:34]} 44. Rxd5 {[%emt 0:00:43]} Rxd5 {[%emt 0:02:03]} 45. Nxd5 {[%emt 0:00:06]} Rb5 {[%emt 0:02:47]} (45... Rb2+ $6 46. Rxb2 axb2 47. Nc3 $11) (45... Rb3 $17 {Black wants to play ...Bd6.} 46. Rc2 Rb5) 46. Nc3 $11 {[%emt 0:00:13]} Rb3 {[%emt 0:00:11]} 47. Rc2 {[%emt 0:03:55]} Bg7 {[%emt 0:04:28]} 48. Nb5 {[%emt 0:02:07]} Be5 {[%emt 0:01:39]} (48... Rxb5 49. Rc8+ Bf8 50. Rxf8+ Kg7 51. Ra8 Rb2+ 52. Kg3 $16) 49. Nxa3 {[%emt 0:00:22]} Rxa3 {[%emt 0:00:08]} 50. Re2 {[%emt 0:01:18]} Bd6 {[%emt 0:02:41]} 51. h4 {[%emt 0:02:31]} Kg7 {[%emt 0:00:18]} 52. g5 {[%emt 0:00:43]} Kf7 {[%emt 0:01:13]} 53. Re4 {[%emt 0:00:51]} Rd3 {[%emt 0:00:52]} 54. h5 {[%emt 0:00:38]} Rd5 {[%emt 0:00:30]} 55. f4 {[%emt 0:04:51]} h6 {[%emt 0:00:09]} 56. gxh6 {[%emt 0:01:14]} Rxh5 {[%emt 0:00:04]} 57. Kf3 {[%emt 0:00:19]} Rxh6 {[%emt 0:00:06]} 58. Ra4 {[%emt 0:00:47]} Ke6 {[%emt 0:00:14]} 59. Kg4 {[%emt 0:00:51]} Rg6+ {[%emt 0:00:17]} 60. Kf3 {[%emt 0:00:04]} Rg1 {[%emt 0:00:08]} 61. Ra2 {[%emt 0:02:00]} Rc1 {[%emt 0:00:20]} 62. Kg4 {[%emt 0:00:47]} Rf1 {[%emt 0:01:50]} 63. Ra4 {[%emt 0:00:21]} Rg1+ {[%emt 0:00:56]} 64. Kf3 {[%emt 0:00:04]} Kd5 {[%emt 0:00:43]} 65. Ra5+ {[%emt 0:00:54]} Kd4 {[%emt 0:03:19]} 66. Ra4+ {[%emt 0:00:07]} Kd3 {[%emt 0:00:27]} 67. Ra5 $1 {[%emt 0:00:19]} Kd4 {[%emt 0:01:07]} 68. Ra4+ $1 {[%emt 0:00:03]} Kd5 {[%emt 0:00:07]} 69. Ra5+ {[%emt 0:00:04]} Bc5 {[%emt 0:00:09]} 70. Ra4 {[%emt 0:01:12]} Re1 {[%emt 0:00:21]} 71. Ra5 {[%emt 0:00:49]} Kd4 {[%emt 0:00:29]} 72. Ra8 {[%emt 0:01:35]} Rf1+ {[%emt 0:00:44]} 73. Kg4 {[%emt 0:01:57]} Bd6 {[%emt 0:00:26]} 74. Ra4+ {[%emt 0:00:07]} Ke3 {[%emt 0:01:24]} 75. Kf5 {[%emt 0:00:06]} Rc1 {[%emt 0:00:13]} ({Don't play} 75... Bxf4 76. Re4+ Kf3 77. Rxf4+ Kg2 78. Rxf1 Kxf1 $11) ({Of course not} 75... Rxf4+ 76. Rxf4 Bxf4 $11) 76. Ra6 {[%emt 0:03:41]} Rc5+ {[%emt 0:00:36]} ({Much worse is} 76... Bxf4 77. Ra3+ Kd4 78. Ra4+ Rc4 79. Rxc4+ Kxc4 $11) ({Black should play} 76... Rd1 $17) 77. Kg4 $1 $11 {[%emt 0:00:05]} Rd5 {[%emt 0:00:15]} 78. Ra4 {[%emt 0:00:30]} (78. f5 $1 $11) 78... Rd1 $17 {[%emt 0:02:37]} 79. Rc4 {[%emt 0:00:55]} Rd3 {[%emt 0:00:59]} 80. f5 {[%emt 0:01:38]} Be5 {[%emt 0:00:41]} 81. Kg5 {[%emt 0:00:51]} Rd6 {[%emt 0:00:24]} 82. Rc1 {[%emt 0:00:52]} Kf3 {[%emt 0:03:45]} (82... Rd2 $15) 83. Rf1+ $1 $11 {[%emt 0:00:20]} Ke2 {[%emt 0:00:01]} 84. Rb1 {[%emt 0:00:36]} Bf6+ {[%emt 0:00:32]} 85. Kh5 {[%emt 0:00:24]} Bd4 {[%emt 0:01:02]} 86. Kg4 {[%emt 0:01:09]} Rd8 {[%emt 0:00:58]} 87. Rb3 {[%emt 0:01:22]} Rg8+ {[%emt 0:01:15]} 88. Kf4 {[%emt 0:00:01]} Kd2 {[%emt 0:01:14]} 89. Rh3 {[%emt 0:00:26]} Bf6 {[%emt 0:00:14]} 90. Rg3 {[%emt 0:01:29]} Rb8 {[%emt 0:00:33]} 91. Rg6 {[%emt 0:01:43]} Rb4+ {[%emt 0:00:10]} 92. Kf3 {[%emt 0:00:02]} Be5 {[%emt 0:00:10]} 93. Rg4 $1 {[%emt 0:00:14]} Rb5 {[%emt 0:01:32]} 94. Ke4 $1 {[%emt 0:00:34]} Kc3 {[%emt 0:01:31]} 95. Rg6 {[%emt 0:00:21]} Rc5 {[%emt 0:00:33]} 96. Re6 {[%emt 0:01:09]} Bd4 {[%emt 0:00:15]} 97. f6 {[%emt 0:00:05]} Bxf6 {[%emt 0:00:13]} 98. Rxf6 1/2-1/2